bitfinex/quotes_ETHUSD_20240630
["timestamp","ask_amount","ask_price","bid_price","bid_amount"]
[1719733628110,5.22143636,3397.2,3397.1,2.00154959]
[1719733628309,5.22143636,3397.2,3397.1,4.44924959]
[1719733628310,6.07143636,3397.2,3397.1,4.44924959]
[1719733628911,6.07143636,3397.2,3397.1,2.00154959]
[1719733630120,6.07123938,3397.2,3397.1,2.00154959]
[1719733630526,5.22123938,3397.2,3397.1,2.00154959]
[1719733630721,6.07123938,3397.2,3397.1,2.00154959]
[1719733633362,6.07133799,3397.2,3397.1,2.00154959]
[1719733636452,3.85,3397.2,3397.1,2.00154959]
[1719733636674,6.07165699,3397.2,3397.1,2.00154959]
[1719733636859,3.85,3397.2,3397.1,2.00154959]
[1719733637063,6.07170748,3397.2,3397.1,2.00154959]
[1719733639566,19.189019,3397.2,3397.1,1.70444458]
[1719733639875,21.96142349,3397.2,3397.1,1.70444458]
[1719733640675,13.74484849,3397.2,3397.1,1.70444458]
[1719733641177,9.21640449,3397.2,3397.1,1.70444458]
[1719733641379,6.07240449,3397.2,3397.1,1.70444458]
[1719733642804,6.07176418,3397.2,3397.1,1.70444458]
[1719733643086,21.31450718,3397.2,3397.1,1.70444458]
[1719733643252,13.94546418,3397.2,3397.1,1.70444458]
[1719733645887,13.9458024,3397.2,3397.1,1.70444458]
[1719733649023,8.77527996,3397.2,3397.1,1.70444458]
[1719733649600,8.77517073,3397.2,3397.1,1.70444458]
[1719733650163,6.07199373,3397.2,3397.1,1.70444458]
[1719733650363,11.83465373,3397.2,3397.1,1.70444458]
[1719733651264,2.22199373,3397.2,3397.1,1.70444458]
[1719733651492,0.54281469,3397.2,3397.1,4.11294458]
[1719733651796,1.39281469,3397.2,3397.1,4.11294458]
[1719733652002,0.54281469,3397.2,3397.1,4.11294458]
[1719733652161,13.31,3397.3,3397.1,4.11294458]
[1719733652360,0.54217061,3397.2,3397.1,4.11294458]
[1719733653101,12.46,3397.3,3397.1,4.11294458]
[1719733653907,0.54210647,3397.2,3397.1,4.11294458]
[1719733654201,3.54210647,3397.2,3397.1,4.11294458]
[1719733655140,3.0,3397.2,3397.1,4.11294458]
[1719733655339,3.54217173,3397.2,3397.1,4.11294458]
[1719733661577,3.88790469,3397.2,3397.1,4.11294458]
[1719733661983,3.0,3397.2,3397.1,4.11294458]
[1719733662291,3.887904,3397.2,3397.1,1.70444458]
[1719733662477,5.78260396,3397.2,3397.1,1.70444458]
[1719733664608,6.00443328,3397.2,3397.1,1.70444458]
[1719733665415,18.63281728,3397.2,3397.1,1.70444458]
[1719733666918,19.38281728,3397.2,3397.1,1.70444458]
[1719733667119,18.63281728,3397.2,3397.1,1.70444458]
[1719733667321,18.63281728,3397.2,3396.0,2.3064]
[1719733667322,2.432,3397.1,3394.7,2.3064]
[1719733667541,2.432,3397.1,3394.9,2.3064]
[1719733667542,2.043,3396.1,3394.9,2.3064]
[1719733667691,2.043,3396.1,3395.0,0.05890274]
[1719733667692,1.02481645,3396.0,3395.0,0.05890274]
[1719733667885,1.02481645,3396.0,3394.6,2.3064]
[1719733668114,1.02481645,3396.0,3394.5,0.05890274]
[1719733668115,4.02481645,3396.0,3394.7,2.36530274]
[1719733668324,1.02481645,3395.9,3394.8,2.36530274]
[1719733668795,1.02481645,3395.9,3394.9,0.05890239]
[1719733668999,1.02481645,3395.9,3394.6,0.22473]
[1719733669000,1.02481645,3395.9,3395.0,2.3064]
[1719733669511,1.02481645,3395.9,3395.0,2.53704]
[1719733669685,1.02481645,3395.9,3395.0,2.3064]
[1719733671019,1.02481645,3395.9,3395.1,2.36530565]
[1719733671322,1.02481645,3395.9,3395.2,2.36530061]
[1719733671524,1.02481645,3395.9,3395.3,0.23653006]
[1719733671902,1.02481645,3395.9,3395.4,2.3064]
[1719733672793,2.95,3395.8,3395.4,2.3064]
[1719733673126,3.0,3395.7,3395.4,2.3064]
[1719733675436,2.95,3395.8,3395.4,2.3064]
[1719733675596,4.02485211,3395.7,3395.4,2.3064]
[1719733675929,1.02485211,3395.6,3395.4,2.3064]
[1719733676490,3.0,3395.7,3395.4,2.3064]
[1719733676688,1.02487975,3395.6,3395.4,2.3064]
[1719733677726,1.02487975,3395.6,3394.8,2.3064]
[1719733677933,1.02487975,3395.6,3394.9,0.23064]
[1719733678695,3.45687975,3395.6,3394.1,2.3064]
[1719733679048,2.043,3395.3,3394.1,2.3064]
[1719733679333,1.02487975,3395.2,3394.1,2.3064]
[1719733679531,3.0,3395.2,3394.2,0.23064]
[1719733679763,1.02539325,3395.1,3394.3,2.3064]
[1719733679903,4.02539325,3395.2,3394.3,2.3064]
[1719733680097,1.02539325,3395.1,3394.3,2.3064]
[1719733680475,3.0,3395.2,3394.4,2.54831762]
[1719733680601,3.0,3395.2,3393.5,1.18052]
[1719733680602,3.0,3395.4,3394.5,0.05890857]
[1719733680798,1.02512785,3395.3,3394.6,2.4894]
[1719733681003,3.0,3395.3,3394.7,0.31373943]
[1719733681837,3.0,3395.4,3394.7,0.31373943]
[1719733682024,2.95,3395.3,3394.9,2.4894]
[1719733682226,3.0,3395.4,3394.9,2.4894]
[1719733682227,3.0,3395.2,3394.9,2.4894]
[1719733682540,3.0,3395.4,3394.9,2.4894]
[1719733682762,3.0,3395.4,3395.0,0.25483086]
[1719733683045,3.0,3395.4,3395.1,2.4894]
[1719733686310,3.0,3395.7,3395.1,2.4894]
[1719733686512,1.02507151,3395.6,3395.1,2.4894]
[1719733686926,1.02507151,3395.6,3393.9,2.41]
[1719733687127,7.33,3395.4,3394.0,2.96]
[1719733687314,3.0,3395.3,3394.0,2.96]
[1719733687509,3.0,3395.3,3394.0,2.41]
[1719733688224,3.0,3395.3,3394.2,2.41]
[1719733688428,3.0,3395.3,3394.4,2.41]
[1719733691281,2.18,3395.1,3394.4,2.41]
[1719733691423,5.18,3395.1,3394.4,2.41]
[1719733691755,2.18,3395.1,3394.4,2.41]
[1719733692146,2.18,3395.1,3394.5,0.05891717]
[1719733692328,2.18,3395.1,3394.4,2.41]
[1719733695530,2.18,3395.1,3393.8,2.38076348]
[1719733695531,2.18,3395.1,3394.5,2.46891285]
[1719733695731,2.18,3395.1,3394.7,2.41]
[1719733708240,1.02516376,3395.0,3393.9,2.3743]
[1719733708783,4.02516376,3395.0,3393.9,2.3743]
[1719733708948,1.02516376,3394.9,3393.9,2.66091783]
[1719733710456,1.02525648,3394.9,3393.9,2.66091783]
[1719733710686,3.0,3395.0,3394.1,2.3743]
[1719733710858,1.02512092,3394.9,3394.1,2.3743]
[1719733711042,4.02507106,3395.0,3394.1,2.3743]
[1719733711243,1.02511627,3394.9,3394.1,2.3743]
[1719733711488,4.02511627,3395.0,3394.1,2.66673]
[1719733711752,1.02511627,3394.9,3394.1,2.66673]
[1719733713434,1.02511627,3394.9,3394.1,2.3743]
[1719733713613,1.02533533,3394.9,3394.1,2.3743]
[1719733716655,3.0,3395.0,3394.1,2.3743]
[1719733716928,1.02533599,3394.9,3394.1,2.3743]
[1719733718701,2.4933,3394.8,3393.4,2.3743]
[1719733718926,8.35533599,3394.7,3393.4,2.3743]
[1719733719267,4.02533599,3394.6,3393.4,2.3743]
[1719733719526,1.02533599,3394.5,3393.4,2.3743]
[1719733719745,3.0,3394.6,3393.4,2.3743]
[1719733719895,1.0256576,3394.5,3393.4,2.3743]
[1719733720307,3.0,3394.6,3393.4,2.3743]
[1719733720308,6.00735725,3394.6,3393.4,2.3743]
[1719733720608,1.0256576,3394.5,3393.4,2.3743]
[1719733722922,1.02555368,3394.5,3393.4,2.3743]
[1719733723289,3.0,3394.6,3393.4,2.3743]
[1719733723510,1.02555308,3394.5,3393.4,2.3743]
[1719733725928,1.02560574,3394.5,3393.4,2.3743]
[1719733728931,3.0,3394.6,3393.4,2.3743]
[1719733729248,6.00782119,3394.6,3393.4,2.3743]
[1719733729459,1.02587134,3394.5,3393.4,2.3743]
[1719733732066,3.0,3394.6,3393.4,2.3743]
[1719733732386,6.00760947,3394.6,3393.4,2.3743]
[1719733732681,1.02577724,3394.5,3393.4,2.3743]
[1719733735086,1.02577724,3394.5,3393.4,2.3743]
[1719733735382,1.0258415,3394.5,3393.4,2.3743]
[1719733735789,2.3285,3394.4,3393.4,2.3743]
[1719733735953,1.0258403,3394.3,3393.4,2.3743]
[1719733736571,4.0258403,3394.3,3393.4,2.3743]
[1719733736732,1.0258403,3394.2,3393.4,2.3743]
[1719733738248,3.0,3394.3,3393.4,2.3743]
[1719733738584,1.02582799,3394.2,3393.4,2.3743]
[1719733738904,2.3285,3394.4,3393.4,2.3743]
[1719733738905,4.02582799,3394.3,3393.4,2.3743]
[1719733739058,1.02582799,3394.2,3393.4,2.3743]
[1719733739240,4.02582799,3394.3,3393.4,2.3743]
[1719733739574,2.18,3394.0,3393.3,0.0632889]
[1719733739773,1.02582799,3393.9,3393.3,0.0632889]
[1719733739971,4.02582799,3393.9,3393.3,0.0632889]
[1719733740146,1.02582799,3393.8,3393.3,0.0632889]
[1719733740548,1.02582799,3393.8,3393.4,2.4486]
[1719733740945,1.02603579,3393.8,3393.4,2.4486]
[1719733741143,3.0,3393.9,3393.4,2.4486]
[1719733741339,1.02603115,3393.8,3393.4,2.4486]
[1719733741552,4.02603115,3393.9,3393.4,2.4486]
[1719733741752,1.02603115,3393.8,3393.4,2.4486]
[1719733741965,4.02603115,3393.9,3393.4,2.4486]
[1719733742237,1.02603115,3393.8,3393.4,2.4486]
[1719733742441,1.0260564,3393.8,3393.4,2.4486]
[1719733743870,1.02605257,3393.8,3393.4,2.4486]
[1719733744478,3.0,3393.9,3393.4,2.4486]
[1719733744777,1.02607848,3393.8,3393.4,2.4486]
[1719733744951,4.02607848,3393.9,3393.4,2.4486]
[1719733745156,1.02607848,3393.8,3393.4,2.4486]
[1719733745745,3.0,3393.9,3393.4,2.4486]
[1719733746078,2.95,3393.8,3393.4,2.4486]
[1719733746386,3.0,3393.7,3393.4,2.4486]
[1719733746692,5.18,3394.0,3393.4,2.4486]
[1719733746891,1.02605345,3393.9,3393.4,2.4486]
[1719733747081,1.02605431,3393.9,3393.4,2.4486]
[1719733747261,4.87905431,3393.9,3393.4,2.4486]
[1719733747447,3.853,3393.9,3393.4,2.4486]
[1719733747648,1.0260519,3393.8,3393.4,2.4486]
[1719733748373,0.853,3393.7,3393.3,0.0632889]
[1719733748758,1.8790519,3393.7,3393.3,0.0632889]
[1719733749089,5.0250519,3393.7,3393.3,0.0632889]
[1719733749289,1.0260519,3393.6,3393.3,0.0632889]
[1719733749480,2.0250519,3393.7,3393.3,0.0632889]
[1719733749803,1.1720519,3393.7,3393.3,0.0632889]
[1719733750110,0.146,3393.7,3393.3,0.0632889]
[1719733751487,3.096,3393.7,3393.3,0.0632889]
[1719733751689,3.0,3393.6,3393.3,0.0632889]
[1719733752506,3.0,3393.6,3393.3,0.0352889]
[1719733755002,3.0,3393.6,3393.4,2.4298]
[1719733755359,0.146,3393.7,3393.4,2.4298]
[1719733757154,1.1720319,3393.7,3393.4,2.4298]
[1719733757358,0.146,3393.7,3393.4,2.4298]
[1719733757866,1.17203154,3393.7,3393.4,2.4298]
[1719733758080,0.146,3393.7,3393.4,2.4298]
[1719733759480,1.17203902,3393.7,3393.4,2.4298]
[1719733759685,1.02603902,3393.6,3393.4,2.4298]
[1719733759907,0.146,3393.7,3393.4,2.4298]
[1719733760559,3.096,3393.7,3393.4,2.4298]
[1719733760771,4.0260556,3393.6,3393.4,2.4298]
[1719733760969,3.0,3393.6,3393.4,2.4298]
[1719733761217,1.0261108,3393.5,3393.4,2.4298]
[1719733762265,3.0,3393.6,3393.4,2.4298]
[1719733762777,1.02606346,3393.5,3393.4,2.4298]
[1719733763176,1.02606346,3393.5,3393.3,0.0352889]
[1719733763501,0.853,3393.4,3393.3,0.0352889]
[1719733763675,1.02606346,3393.5,3393.3,0.0352889]
[1719733765170,0.853,3393.4,3393.3,0.0352889]
[1719733765377,3.282,3393.4,3393.3,0.0352889]
[1719733765713,1.02658818,3393.4,3393.3,0.0352889]
[1719733766009,1.87958818,3393.5,3393.3,0.0352889]
[1719733766211,1.02658818,3393.5,3393.3,0.0352889]
[1719733768120,1.02658818,3393.5,3393.4,2.2588]
[1719733768740,3.146,3393.7,3393.4,2.2588]
[1719733768741,1.02658818,3393.6,3393.4,2.2588]
[1719733769165,1.87958818,3393.6,3393.3,0.0352889]
[1719733769372,1.02658818,3393.6,3393.3,0.0352889]
[1719733771062,2.429,3393.5,3393.3,0.0352889]
[1719733771268,1.02658818,3393.4,3393.3,0.0352889]
[1719733771442,4.02658818,3393.4,3393.3,0.0352889]
[1719733771773,4.02664688,3393.4,3393.3,0.0352889]
[1719733771922,5.048,3393.4,3393.3,0.0352889]
[1719733772132,6.07468143,3393.4,3393.3,0.0352889]
[1719733773568,4.02668143,3393.4,3393.3,0.0352889]
[1719733774380,1.02668143,3393.4,3393.3,0.0352889]
[1719733774590,3.0,3393.4,3393.3,0.0352889]
[1719733774783,4.02638184,3393.4,3393.3,0.0352889]
[1719733775596,1.02638184,3393.4,3393.3,0.0352889]
[1719733775862,2.12858798,3393.7,3393.3,0.0352889]
[1719733775863,1.02638184,3393.5,3393.3,0.0352889]
[1719733776059,3.15496982,3393.7,3393.3,0.0352889]
[1719733776305,1.02638184,3393.6,3393.3,0.0352889]
[1719733776463,1.17238184,3393.7,3393.3,0.0352889]
[1719733777120,4.17238184,3393.7,3393.3,0.0352889]
[1719733777286,1.02638184,3393.6,3393.3,0.0352889]
[1719733777652,3.97628662,3393.6,3393.3,0.0352889]
[1719733777894,4.02628662,3393.5,3393.3,0.0352889]
[1719733778200,1.02628662,3393.4,3393.3,0.0352889]
[1719733779253,1.02628662,3393.4,3393.3,0.0323614]
[1719733780836,1.02654011,3393.4,3393.3,0.0323614]
[1719733784545,1.02654555,3393.4,3393.3,0.0323614]
[1719733787261,1.0265521,3393.4,3393.3,0.0323614]
[1719733790292,3.0,3393.5,3393.3,0.0323614]
[1719733790636,4.02638424,3393.4,3393.3,0.0323614]
[1719733790848,1.02638424,3393.4,3393.3,0.0323614]
[1719733790992,1.02638424,3393.6,3393.3,0.0323614]
[1719733792726,3.97638424,3393.6,3393.3,0.0323614]
[1719733792895,4.02638424,3393.5,3393.3,0.0323614]
[1719733793097,1.02638424,3393.4,3393.3,0.0323614]
[1719733794036,1.02638424,3393.4,3393.3,2.4800614]
[1719733794334,1.02638424,3393.5,3393.3,2.4800614]
[1719733794550,1.0258867,3393.6,3393.4,0.25390037]
[1719733794867,1.17185831,3393.7,3393.4,0.25390037]
[1719733795422,4.17185831,3393.7,3393.5,0.27339618]
[1719733795642,6.096,3393.7,3393.6,2.4477]
[1719733799795,3.096,3393.7,3393.6,2.4477]
[1719733799992,3.096,3393.7,3393.6,2.78197716]
[1719733800197,0.146,3393.7,3393.6,2.78197716]
[1719733800836,7.33,3394.2,3393.6,2.72304576]
[1719733801039,7.33,3394.2,3393.8,2.4327]
[1719733801197,7.33,3394.2,3393.9,2.75850458]
[1719733801405,2.95,3394.1,3393.9,2.75850458]
[1719733801710,2.95,3394.1,3394.0,2.4327]
[1719733804105,2.95,3394.1,3393.9,0.32580458]
[1719733804310,2.95,3394.1,3393.7,2.4327]
[1719733804959,2.922,3394.1,3393.7,2.4327]
[1719733805158,2.922,3394.1,3393.7,2.5787]
[1719733808028,3.0,3394.0,3393.7,0.146]
[1719733809680,3.0,3394.0,3393.4,2.2591]
[1719733809856,3.0,3394.0,3393.5,0.22914614]
[1719733816351,3.0,3394.0,3393.4,2.2591]
[1719733820440,3.0,3394.2,3393.4,2.2591]
[1719733820575,1.02585649,3394.1,3393.4,2.2591]
[1719733820971,1.0258573,3394.1,3393.4,2.2591]
[1719733821423,1.0258573,3394.1,3393.4,2.48824614]
[1719733821926,1.0258573,3394.1,3393.4,2.2591]
[1719733822643,6.2101573,3394.1,3393.3,0.0323614]
[1719733822787,1.0258573,3394.0,3393.3,0.0323614]
[1719733822989,4.0258573,3394.0,3393.3,0.0323614]
[1719733823314,1.0258573,3393.9,3393.3,0.0323614]
[1719733823988,1.02618298,3393.9,3393.3,0.0323614]
[1719733824687,2.2623,3393.7,3393.3,0.0323614]
[1719733824935,1.02618298,3393.6,3393.3,0.0323614]
[1719733825152,4.02618298,3393.6,3393.3,0.0323614]
[1719733825309,1.02618298,3393.5,3393.3,0.0323614]
[1719733826416,1.02618298,3393.7,3393.3,0.0323614]
[1719733827231,1.02637809,3393.7,3393.3,0.0323614]
[1719733827430,3.0,3393.8,3393.3,0.0323614]
[1719733827634,1.02639124,3393.7,3393.3,0.0323614]
[1719733827859,4.02639124,3393.8,3393.3,0.0323614]
[1719733828154,1.02639124,3393.7,3393.3,0.0323614]
[1719733828336,2.4528,3393.6,3393.3,0.0323614]
[1719733828535,1.02639124,3393.5,3393.3,0.0323614]
[1719733828864,4.02639124,3393.5,3393.3,0.0323614]
[1719733829021,1.02639124,3393.4,3393.3,0.0323614]
[1719733830109,3.0,3393.5,3393.3,0.0323614]
[1719733830417,1.02642573,3393.4,3393.3,0.0323614]
[1719733833198,5.4528,3393.5,3393.3,0.0323614]
[1719733833372,1.02668844,3393.4,3393.3,0.0323614]
[1719733833845,3.47948844,3393.4,3393.3,0.0323614]
[1719733834047,6.47948844,3393.4,3393.3,0.0323614]
[1719733836319,6.47956429,3393.4,3393.3,0.0323614]
[1719733838593,4.02676429,3393.4,3393.3,0.0323614]
[1719733838807,1.02676429,3393.4,3393.3,0.0323614]
[1719733839506,1.02659854,3393.4,3393.3,0.0323614]
[1719733839854,1.02661718,3393.4,3393.3,0.0323614]
[1719733842458,1.02649933,3393.4,3393.3,0.0323614]
[1719733842696,3.0,3393.5,3393.3,0.0323614]
[1719733844702,5.13,3393.6,3393.4,2.3466]
[1719733845013,2.18,3393.6,3393.4,2.3466]
[1719733851212,2.18,3393.6,3393.3,0.0323614]
[1719733851398,5.18,3393.6,3393.3,0.0323614]
[1719733851814,1.0262869,3393.5,3393.3,0.0323614]
[1719733851980,4.0262869,3393.5,3393.3,0.0323614]
[1719733852325,1.02642452,3393.4,3393.3,0.0323614]
[1719733854578,3.0,3393.5,3393.3,0.0323614]
[1719733854774,1.02648536,3393.4,3393.3,0.0323614]
[1719733855019,4.02648536,3393.5,3393.3,0.0323614]
[1719733855237,1.02648536,3393.4,3393.3,0.0323614]
[1719733857954,1.02644422,3393.4,3393.3,0.0323614]
[1719733860657,5.922,3393.5,3393.3,0.0323614]
[1719733860861,1.02653278,3393.4,3393.3,0.0323614]
[1719733863329,3.0,3393.5,3393.3,0.0323614]
[1719733863532,1.02647143,3393.4,3393.3,0.0323614]
[1719733863742,1.02647143,3393.5,3393.3,2.3152614]
[1719733863941,1.02647143,3393.5,3393.3,2.54678754]
[1719733863942,4.02627665,3393.5,3393.3,2.54678754]
[1719733864141,3.0,3393.5,3393.3,2.54678754]
[1719733865933,2.18,3393.6,3393.3,2.54678754]
[1719733869273,2.18,3393.6,3393.4,0.05893376]
[1719733869478,2.18,3393.6,3393.5,2.58507213]
[1719733869702,7.33,3393.9,3393.5,2.58507213]
[1719733871060,7.33,3393.9,3393.6,2.3834269]
[1719733873906,2.922,3394.2,3393.6,2.3834269]
[1719733874050,2.922,3394.2,3393.7,2.5888999]
[1719733874253,2.922,3394.2,3393.9,2.3245]
[1719733874448,2.922,3394.2,3394.1,2.3245]
[1719733874671,5.922,3394.2,3394.1,2.3245]
[1719733874908,2.922,3394.2,3394.1,2.56284211]
[1719733876668,2.922,3394.2,3394.1,3.11284211]
[1719733877673,2.922,3394.2,3394.1,5.15984211]
[1719733878210,0.422,3394.2,3394.1,5.15984211]
[1719733879089,0.422,3394.2,3394.1,3.11284211]
[1719733879412,0.422,3394.2,3394.1,5.15984211]
[1719733880986,7.33,3394.8,3394.2,2.4591]
[1719733881188,7.33,3394.8,3394.5,2.047]
[1719733881391,7.33,3395.3,3394.6,3.06800715]
[1719733881719,3.0,3395.2,3394.6,3.06800715]
[1719733881902,3.0,3395.2,3394.7,0.51150072]
[1719733882107,3.0,3395.2,3394.8,0.05890369]
[1719733882615,7.33,3395.3,3394.8,0.05890369]
[1719733885913,3.0,3395.6,3394.8,0.05890369]
[1719733886784,3.0,3395.6,3394.9,2.2697]
[1719733886985,3.0,3395.6,3395.0,0.34290923]
[1719733887284,3.0,3395.6,3395.0,0.28401044]
[1719733888102,3.0,3395.6,3393.4,4.90923718]
[1719733888103,3.0,3395.6,3394.1,2.2697]
[1719733889321,3.0,3395.6,3394.2,2.8197]
[1719733891340,3.0,3395.6,3394.8,0.852]
[1719733892136,0.852,3395.5,3394.7,2.4697]
[1719733892340,3.0,3395.6,3394.4,2.4697]
[1719733892341,0.852,3395.2,3394.4,2.4697]
[1719733892498,3.852,3395.2,3394.4,2.80187]
[1719733892693,3.852,3395.2,3394.4,2.4697]
[1719733893163,3.0,3395.2,3394.4,3.3217]
[1719733893371,0.852,3395.5,3394.6,0.852]
[1719733894753,0.852,3395.5,3394.5,0.33217]
[1719733894952,0.852,3395.3,3394.4,3.3217]
[1719733898875,0.852,3395.3,3394.4,2.4697]
[1719733899073,3.1723,3395.3,3394.4,2.4697]
[1719733899285,3.0,3395.2,3394.4,2.4697]
[1719733900062,0.852,3395.1,3394.4,2.4697]
[1719733900250,0.852,3394.7,3393.4,2.4697]
[1719733900463,10.4766,3394.7,3393.8,0.852]
[1719733900780,7.33,3394.7,3394.2,0.852]
[1719733900984,15.10484026,3395.0,3394.3,2.4603]
[1719733900985,3.0,3394.6,3394.3,2.4603]
[1719733901277,3.0,3394.9,3394.3,2.4603]
[1719733901493,3.0,3394.9,3394.3,2.79153]
[1719733901786,3.0,3394.9,3394.4,0.91091183]
[1719733902879,3.0,3394.9,3394.4,0.852]
[1719733903083,3.0,3394.9,3394.4,1.216353]
[1719733904379,3.0,3395.0,3394.4,1.216353]
[1719733906281,3.0,3395.0,3394.4,0.364353]
[1719733910192,5.3242,3395.0,3394.0,2.3747]
[1719733910501,5.3242,3395.0,3394.0,3.2267]
[1719733912073,5.3242,3395.0,3394.2,0.852]
[1719733913394,1.02399314,3394.9,3394.2,0.852]
[1719733913602,5.3242,3395.0,3394.2,0.852]
[1719733913806,1.02395559,3394.9,3394.2,0.852]
[1719733913962,5.3242,3395.0,3394.2,0.852]
[1719733914162,1.02368792,3394.9,3394.2,0.852]
[1719733916493,1.87568792,3394.9,3394.0,2.3747]
[1719733916708,1.02368104,3394.8,3394.1,0.852]
[1719733917001,1.87568104,3394.9,3394.1,0.852]
[1719733917210,1.87568104,3394.9,3394.1,1.17467]
[1719733919979,1.02213838,3394.8,3394.1,1.17467]
[1719733920203,1.87413838,3394.9,3394.1,1.17467]
[1719733921377,1.87413838,3394.9,3394.1,0.32267]
[1719733921572,1.87413838,3394.9,3394.0,2.3747]
[1719733922283,1.02218247,3394.8,3394.0,2.3747]
[1719733922483,0.852,3394.9,3394.0,2.3747]
[1719733922484,0.852,3394.7,3394.0,2.3747]
[1719733924244,0.852,3394.1,3393.4,2.3915]
[1719733925906,1.87455944,3394.1,3393.4,2.3915]
[1719733926282,1.02255944,3394.0,3393.4,2.3915]
[1719733926482,0.852,3394.1,3393.4,2.3915]
[1719733928541,1.87531602,3394.1,3393.4,2.3915]
[1719733928839,1.02331602,3394.0,3393.4,2.3915]
[1719733929122,0.852,3394.1,3393.4,2.3915]
[1719733929328,0.852,3394.1,3393.4,2.71908614]
[1719733929626,0.852,3394.1,3393.4,2.3915]
[1719733934485,0.852,3393.9,3393.3,0.0323614]
[1719733934850,3.852,3393.9,3393.3,0.0323614]
[1719733934983,1.02403111,3393.8,3393.3,0.0323614]
[1719733937952,1.02404555,3393.8,3393.3,0.0323614]
[1719733938447,3.0,3393.9,3393.3,0.0323614]
[1719733938651,1.02414291,3393.8,3393.3,0.0323614]
[1719733941359,0.852,3393.7,3393.3,0.0323614]
[1719733942714,1.02353205,3393.8,3393.3,0.0323614]
[1719733944432,1.02352053,3393.8,3393.3,0.0323614]
[1719733947115,0.852,3393.7,3393.3,0.0323614]
[1719733947338,3.852,3393.7,3393.3,0.0323614]
[1719733948466,3.0,3393.7,3393.3,0.0323614]
[1719733948665,2.18,3394.0,3393.3,0.0323614]
[1719733948666,0.852,3393.9,3393.3,0.0323614]
[1719733948957,0.852,3393.7,3393.3,0.0323614]
[1719733950666,1.02433874,3393.8,3393.3,0.0323614]
[1719733950986,1.87644981,3393.8,3393.3,0.0323614]
[1719733951169,0.852,3393.8,3393.3,0.0323614]
[1719733951472,1.87643945,3393.8,3393.3,0.0323614]
[1719733953936,1.02412387,3393.7,3393.3,0.0323614]
[1719733954163,1.87612387,3393.8,3393.3,0.0323614]
[1719733957165,1.02413015,3393.7,3393.3,0.0323614]
[1719733957372,1.87613015,3393.8,3393.3,0.0323614]
[1719733960414,1.02409454,3393.7,3393.3,0.0323614]
[1719733960599,1.87609454,3393.8,3393.3,0.0323614]
[1719733963572,1.02411513,3393.7,3393.3,0.0323614]
[1719733963874,0.852,3393.8,3393.3,0.0323614]
[1719733964074,1.87611486,3393.8,3393.3,0.0323614]
[1719733965917,0.852,3393.6,3393.3,0.0323614]
[1719733966305,0.852,3393.4,3393.3,0.0323614]
[1719733967684,1.36292025,3393.4,3393.3,0.0323614]
[1719733968024,2.38678602,3393.4,3393.3,0.0323614]
[1719733969914,0.852,3393.4,3393.3,0.0323614]
[1719733970116,1.3629216,3393.4,3393.3,0.0323614]
[1719733970440,2.3868058,3393.4,3393.3,0.0323614]
[1719733971218,4.8625058,3393.4,3393.3,0.0323614]
[1719733971378,7.8625058,3393.4,3393.3,0.0323614]
[1719733972989,6.8386216,3393.4,3393.3,0.0323614]
[1719733973195,7.86308963,3393.4,3393.3,0.0323614]
[1719733973430,4.53538963,3393.4,3393.3,0.0323614]
[1719733973722,2.38738963,3393.4,3393.3,0.0323614]
[1719733976280,0.852,3393.4,3393.3,0.0323614]
[1719733976481,2.38778719,3393.4,3393.3,0.0323614]
[1719733976696,1.87688343,3393.4,3393.3,0.0323614]
[1719733976998,2.38781257,3393.4,3393.3,0.0323614]
[1719733979499,2.38817859,3393.4,3393.3,0.0323614]
[1719733980100,1.53617859,3393.4,3393.3,0.0323614]
[1719733980512,2.38817859,3393.4,3393.3,0.0323614]
[1719733981503,1.53617859,3393.4,3393.3,2.3848614]
[1719733981834,1.53612764,3393.4,3393.3,2.3848614]
[1719733981991,0.5108577,3393.4,3393.3,2.3848614]
[1719733982337,0.5108577,3393.4,3393.3,3.47534754]
[1719733983298,1.02508817,3393.8,3393.3,1.12284754]
[1719733983536,9.51,3394.0,3393.5,2.3525]
[1719733983537,0.51071895,3393.7,3393.5,2.3525]
[1719733983713,0.51071895,3393.7,3393.4,0.6089262]
[1719733983714,9.51,3394.0,3393.9,2.3525]
[1719733983930,9.51,3394.0,3393.9,3.58584246]
[1719733984937,9.51,3394.0,3393.9,2.73384246]
[1719733985138,9.51,3394.0,3393.9,3.58584246]
[1719733985496,9.51,3394.0,3393.9,2.73384246]
[1719733987518,2.18,3394.0,3393.9,2.73384246]
[1719733994268,2.18,3394.0,3393.5,0.852]
[1719733996753,2.18,3394.0,3393.7,0.852]
[1719733997107,2.18,3394.0,3393.8,2.3115]
[1719733997314,2.18,3394.0,3393.9,0.31635]
[1719733999055,2.18,3394.0,3393.9,1.16835]
[1719734000391,2.18,3394.0,3393.9,3.62145]
[1719734000744,3.0,3394.5,3393.9,3.62145]
[1719734000944,3.0,3394.5,3394.1,0.852]
[1719734001140,3.0,3394.5,3394.2,2.4531]
[1719734001395,7.33,3395.0,3394.4,2.4531]
[1719734001540,3.0,3394.8,3394.7,0.852]
[1719734001976,3.0,3395.3,3394.5,0.852]
[1719734002651,3.0,3395.3,3394.4,2.4531]
[1719734002852,3.0,3395.3,3394.5,0.852]
[1719734003071,3.0,3395.3,3394.4,2.4531]
[1719734003480,0.852,3395.2,3394.4,2.4531]
[1719734006952,3.0,3395.3,3394.5,0.852]
[1719734007794,3.2301,3395.2,3394.2,0.852]
[1719734007968,3.0,3395.1,3394.3,0.31927]
[1719734008146,3.0,3395.1,3394.3,2.3407]
[1719734008353,3.0,3395.1,3394.4,0.852]
[1719734010697,2.3781,3395.2,3394.4,0.852]
[1719734010994,3.0,3395.3,3394.6,0.852]
[1719734011154,7.33,3395.4,3394.6,0.852]
[1719734011953,7.33,3395.4,3394.7,2.3407]
[1719734012383,3.0,3395.3,3394.7,2.3407]